Cogmind - Beta 15 @@@ ROGUE MODE // 2025.10.15 @ 13:34:13 Player: shapeshifter Result: Destroyed by as-41003 with Assembled Blade Performance ------------- Evolutions (0) 0 Regions Visited (4) 800 Robots Destroyed (5) 25 Value Destroyed (101) 101 Prototype IDs (23) 460 Alien Tech Used (0) 0 Bonus (300) 300 TOTAL SCORE: 1686 Bonus ------- Aligned with FarCom 300 Cogmind --------- Core Integrity 0/250 Matter 300/300 Energy 100/100 System Corruption 0% Temperature Cool (20) Movement Core (350) Ox6 Location -9/Mines Parts ------- > --- POWER (1) -------- (None) > --- PROPULSION (2) --- (None) > --- UTILITY (2) ------ Large Storage Unit > --- WEAPON (2) ------- (None) > --- INVENTORY (15) --- Potential Leg Potential Leg Compact Wheel Compact Wheel Scrap Suit High-capacity Storage Unit Huge Storage Unit High-capacity Matter Pod (200) Improved Terrain Scanner Skeleton Box AWS/Autocannon Enhanced Flamer Peak State ------------ > --- POWER ------------ Ion Engine > --- PROPULSION ------- Light Treads Light Treads > --- UTILITY ---------- Large Storage Unit Seismic Detector > --- WEAPON ----------- Beamcaster Light Assault Rifle > --- INVENTORY -------- Potential Leg Potential Leg Compact Wheel Compact Wheel Scrap Suit High-capacity Storage Unit Huge Storage Unit High-capacity Matter Pod Improved Terrain Scanner AWS/Autocannon Mining Laser Enhanced Flamer [Rating: 18] Favorites ----------- Power Ion Engine Engine Ion Engine Propulsion Light Treads Treads Light Treads Wheel Compact Wheel Utility Seismic Detector Device Seismic Detector Storage Small Storage Unit Weapon Light Assault Rifle Energy Gun Beamcaster Ballistic Gun Light Assault Rifle Build | -11 -10 -10 -10 -9 ------- Run | Yrd Mat Min Exi Min Slots Evolved . | . . . . . Power . | . . . . . Propulsion . | . . . . . Utility . | . . . . . Weapon . | . . . . . Parts Attached 11 | 8 . 2 1 . Power 2 | 1 . 1 . . Engine 2 | 1 . 1 . . Core . | . . . . . Reactor . | . . . . . Propulsion 3 | 3 . . . . Treads 2 | 2 . . . . Leg . | . . . . . Wheel 1 | 1 . . . . Hover . | . . . . . Flight . | . . . . . Utility 3 | 2 . . 1 . Device 1 | 1 . . . . Storage 2 | 1 . . 1 . Processor . | . . . . . Hackware . | . . . . . Protection . | . . . . . Artifact . | . . . . . Weapon 3 | 2 . 1 . . Energy Gun 1 | . . 1 . . Energy Cannon . | . . . . . Ballistic Gun 2 | 2 . . . . Ballistic Cannon . | . . . . . Launcher . | . . . . . Special Weapon . | . . . . . Impact Weapon . | . . . . . Slashing Weapon . | . . . . . Piercing Weapon . | . . . . . Special Melee Weapon . | . . . . . Unidentified Prototypes . | . . . . . Parts Lost 7 | . . 1 . 6 Power 2 | . . 1 . 1 Propulsion 2 | . . . . 2 Utility 1 | . . . . 1 Weapon 2 | . . . . 2 Highest Loss Streak 6 | . . 1 . 6 To Critical Strikes . | . . . . . Average Backups 7 | 3 5 6 10 12 Power . | . 1 . . . Propulsion 2 | 1 2 2 2 4 Utility 3 | . 1 3 5 5 Weapon 1 | 1 1 1 2 2 Tool/Special . | . . . . . Unused Backups 18 | . . 3 4 11 Power 1 | . . 1 . . Propulsion 3 | . . . . 3 Utility 9 | . . 1 3 5 Weapon 4 | . . 1 1 2 Tool/Special 1 | . . . . 1 Average Slot Usage (%) 99 | . 100 99 100 96 Engine 13 | . 14 13 14 14 Treads 28 | . 28 28 28 28 Device 14 | . 14 14 14 14 Storage 14 | . 14 14 14 14 Energy Gun 10 | . . 10 14 10 Ballistic Gun 17 | . 28 17 14 14 Peak Build Rating 18 | 7 7 12 18 18 Average Rating 11 | 4 7 10 14 16 On Entrance 8 | . 7 7 12 18 Naked Turns . | . . . . . Heaviest Build 32 | 13 13 17 32 32 Greatest Support 40 | 40 40 40 40 40 Greatest Overweight (x) . | . . . . . Average Overweight (x) . | . . . . . Largest Inventory Capacity 15 | 8 8 8 15 15 Average Capacity 9 | 6 8 8 13 15 Most Carried 15 | 6 6 8 15 15 Average Carried 8 | 4 5 7 11 15 Final Capacity 15 | 8 8 8 15 15 Final Carried 15 | 5 6 8 15 15 Class Distribution -------------------- 100% | Mutant Dominant Class ---------------- Mutant | -10/Materials Mutant | -10/Mines Mutant | -10/Exiles Mutant | -9/Mines Resources | -11 -10 -10 -10 -9 ----------- Run | Yrd Mat Min Exi Min Matter Collected 355 | 264 . 71 20 . Remotely . | . . . . . Salvage Created 225 | 41 . 170 . 14 Parts 9 | 5 . 4 . . Haulers Intercepted . | . . . . . Recyclers Shooed 2 | 1 . 1 . . Parts Field Recycled . | . . . . . Retrieved Matter . | . . . . . Parts Self-Destructed . | . . . . . Prevented . | . . . . . Kills | -11 -10 -10 -10 -9 ------- Run | Yrd Mat Min Exi Min Combat Hostiles Destroyed 3 | . . 2 . 1 Guns 3 | . . 2 . 1 Classes Destroyed 4 | 1 . 2 . 1 Tunneler 2 | 2 . . . . Recycler 1 | . . 1 . . Grunt 2 | . . 2 . . Assembled 1 | . . . . 1 Best Kill Streak 3 | 2 . 3 . 1 Combat Bots Only 2 | . . 2 . 1 Max Kills in Single Turn 1 | 1 . 1 . 1 Gunslinging . | . . . . . Exploded . | . . . . . Melee . | . . . . . Uniques/NPCs Destroyed . | . . . . . Combat | -11 -10 -10 -10 -9 -------- Run | Yrd Mat Min Exi Min Hostile Shots Fired 73 | . . 20 . 53 Missed 14 | . . 4 . 10 Hits 59 | . . 16 . 43 Melee 12 | . . . . 12 Projectile 47 | . . 16 . 31 Damage Taken 984 | . . 206 . 778 Core 270 | . . 28 . 242 Absorbed by Shields . | . . . . . Core Remaining (%) 100 | 100 . . . . Volleys Fired 26 | 6 . 15 . 5 Largest 2 | 2 . 2 . 2 Hottest 95 | 40 . 95 . 95 Shots Fired 52 | 12 . 30 . 10 Gun 52 | 12 . 30 . 10 Cannon . | . . . . . Launcher . | . . . . . Special . | . . . . . Kinetic 45 | 12 . 28 . 5 Thermal 7 | . . 2 . 5 Explosive . | . . . . . Electromagnetic . | . . . . . Robot Hit Streak 4 | 4 . 4 . 3 Robot Miss Streak 4 | 2 . 3 . 4 Penetration Max . | . . . . . Secondary Targets 2 | . . 1 . 1 Max Gunslinging Chain 1 | . . 1 . 1 Shots Hit Robots 29 | 7 . 18 . 4 Core Hits 16 | 5 . 9 . 2 Critical Kills . | . . . . . Critical Parts Destroyed . | . . . . . Critical Strikes 1 | . . . . 1 Burn 1 | . . . . 1 Melee Attacks . | . . . . . Impact . | . . . . . Slashing . | . . . . . Piercing . | . . . . . Sneak Attacks . | . . . . . Combat Hostiles . | . . . . . Follow-up Attacks . | . . . . . Damage Inflicted 261 | 55 . 152 . 54 Guns 261 | 55 . 152 . 54 Cannons . | . . . . . Explosions . | . . . . . Melee . | . . . . . Ramming . | . . . . . Kinetic 221 | 55 . 152 . 14 Thermal 40 | . . . . 40 Explosive . | . . . . . Electromagnetic . | . . . . . Impact . | . . . . . Slashing . | . . . . . Piercing . | . . . . . Highest Corruption . | . . . . . Average Corruption . | . . . . . Corruption Purged . | . . . . . Corruption Blocked . | . . . . . Overload Shots . | . . . . . Overflow Damage . | . . . . . Projectiles . | . . . . . Explosions . | . . . . . Melee . | . . . . . Knockbacks . | . . . . . Impact . | . . . . . Kinetic . | . . . . . Secondary . | . . . . . Self-Inflicted Damage . | . . . . . Shots . | . . . . . Rammed . | . . . . . Targets Rammed . | . . . . . Kicked . | . . . . . Crushed . | . . . . . Highest Temperature 210 | . . 54 . 210 Average Temperature 60 | . . 17 . 103 Received Heat Transfer 234 | . . 114 . 120 Siege Activations . | . . . . . Martial Activations . | . . . . . Shielding Activations . | . . . . . Robots Disrupted . | . . . . . Combat Hostiles . | . . . . . Robots Corrupted . | . . . . . Combat Hostiles . | . . . . . Parts Fried . | . . . . . Impact Corruptions . | . . . . . Robots Melted . | . . . . . Combat Hostiles . | . . . . . Parts Melted . | . . . . . Heat Transferred 148 | . . . . 148 Parts Sabotaged . | . . . . . Parts Stolen . | . . . . . Parts Stripped . | . . . . . Power Chain Reactions . | . . . . . Alert | -11 -10 -10 -10 -9 ------- Run | Yrd Mat Min Exi Min Maximum Alert Level . | . . . . . Low Security (%) 100 | 100 100 100 . 100 Level 1 . | . . . . . Level 2 . | . . . . . Level 3 . | . . . . . Level 4 . | . . . . . Level 5 . | . . . . . High Security . | . . . . . Max Security . | . . . . . Peak Influence 35 | 5 4 35 . . Initial 3 | . 3 . . . Average 1 | 1 . 1 . . Influence Increases 69 | 10 4 55 . . Destroy 0b10 Robot/C 40 | . . 40 . . Destroy 0b10 Robot/NC 15 | 10 . 5 . . Destroy Leader 10 | . . 10 . . Successful Hack 4 | . 4 . . . Influence Decreases 69 | 5 9 55 . . Entered New Map 2 | . 2 . . . Time Decay 57 | 5 7 45 . . Lost Part 10 | . . 10 . . Squads Dispatched . | . . . . . Investigation . | . . . . . Extermination . | . . . . . Reinforcement . | . . . . . Assault . | . . . . . Garrison . | . . . . . Intercept . | . . . . . Searches Triggered . | . . . . . Construction Impeded . | . . . . . Haulers Reinforced . | . . . . . Active Scanning Responses . | . . . . . Cargo Convoy Interrupts . | . . . . . Stealth | -11 -10 -10 -10 -9 --------- Run | Yrd Mat Min Exi Min Distress Signals . | . . . . . Communications Jammed . | . . . . . Distress Signals . | . . . . . Times Spotted 20 | . . 2 . 18 Peak Tracking Total 16 | . . 2 . 16 Tactical Retreats 1 | . . . . 1 Traps | -11 -10 -10 -10 -9 ------- Run | Yrd Mat Min Exi Min Traps Triggered . | . . . . . Indirectly . | . . . . . Trap Hack Attempts . | . . . . . Triggered . | . . . . . Disarmed . | . . . . . Reprogrammed . | . . . . . Reused . | . . . . . Traps Extracted . | . . . . . Installed . | . . . . . Triggered . | . . . . . Machines | -11 -10 -10 -10 -9 ---------- Run | Yrd Mat Min Exi Min Machines Disabled . | . . . . . Max in Single Turn . | . . . . . Machines Repaired . | . . . . . Machines Dismantled . | . . . . . Machines Sabotaged . | . . . . . Overloaded Fab Kills . | . . . . . Hacking | -11 -10 -10 -10 -9 --------- Run | Yrd Mat Min Exi Min Machines Accessed 4 | . 2 . 2 . Terminals 2 | . 2 . . . Fabricators . | . . . . . Repair Stations . | . . . . . Recycling Units . | . . . . . Scanalyzers . | . . . . . Garrison Access . | . . . . . Total Hacks 8 | . 6 . 2 . Successful 4 | . 2 . 2 . Failed 4 | . 4 . . . Catastrophic . | . . . . . Database Lockouts . | . . . . . Manual 7 | . 6 . 1 . Terminals 6 | . 6 . . . Fabricators . | . . . . . Repair Stations . | . . . . . Recycling Units . | . . . . . Scanalyzers . | . . . . . Garrison Access . | . . . . . Terminal Hacks 2 | . . . 2 . Record 1 | . . . 1 . Proto ID Catalog 1 | . . . 1 . Fabricator Hacks . | . . . . . Repair Station Hacks . | . . . . . Recycling Unit Hacks . | . . . . . Scanalyzer . | . . . . . Garrison Access Hacks . | . . . . . Unauthorized Hacks 2 | . 2 . . . Terminals 2 | . 2 . . . Skim 2 | . 2 . . . Fabricators . | . . . . . Repair Stations . | . . . . . Recycling Units . | . . . . . Scanalyzers . | . . . . . Garrison Access . | . . . . . Data Cores Recovered . | . . . . . Used . | . . . . . Hacking Detections 2 | . 2 . . . Full Trace Events . | . . . . . Feedback Events . | . . . . . Feedback Blocked . | . . . . . Robot Schematics Acquired . | . . . . . Robots Built . | . . . . . Authchips . | . . . . . Time . | . . . . . Total Robot Build Rating . | . . . . . Part Schematics Acquired . | . . . . . Parts Built . | . . . . . Authchips . | . . . . . Time . | . . . . . Total Part Build Rating . | . . . . . Parts Repaired . | . . . . . Time . | . . . . . Parts Recycled . | . . . . . Recycled Matter . | . . . . . Retrieved Matter . | . . . . . Retrieved Components . | . . . . . Parts Scanalyzed . | . . . . . Part Schematics Acquired . | . . . . . Parts Damaged . | . . . . . Bothacking | -11 -10 -10 -10 -9 ------------ Run | Yrd Mat Min Exi Min Used RIF Installer . | . . . . . Robots Hacked . | . . . . . Non-combat . | . . . . . Combat . | . . . . . Robot Hacks Applied . | . . . . . Relay Couplers Released . | . . . . . Fabnet Peak Effective % . | . . . . . Robots Rewired . | . . . . . Allies Hacked . | . . . . . Hacks Repelled . | . . . . . Allies | -11 -10 -10 -10 -9 -------- Run | Yrd Mat Min Exi Min Total Allies 4 | . . 4 . . Largest Group 3 | . . 3 3 3 Highest-Rated Group 40 | . . 40 40 40 Highest-Rated Ally 31 | . . 31 16 16 Total Orders . | . . . . . Ally Attacks 20 | . . 5 . 15 Total Damage 193 | . . 64 . 129 Kills 2 | . . . . 2 Allies Corrupted . | . . . . . Allies Melted . | . . . . . Intel | -11 -10 -10 -10 -9 ------- Run | Yrd Mat Min Exi Min Active Infowar (turns) 1650 | 1 177 866 576 30 Seismic 1650 | 1 177 866 576 30 Robot Analysis Total . | . . . . . Derelict Logs Recovered 1 | . . 1 . . Drone Launches . | . . . . . Drone Recoveries . | . . . . . Exploration | -11 -10 -10 -10 -9 ------------- Run | Yrd Mat Min Exi Min Turns Passed 1745 | 95 177 866 576 31 Spaces Moved 1007 | 50 111 489 350 7 Core 15 | 15 . . . . Treads 990 | 33 111 489 350 7 Legs . | . . . . . Wheels 2 | 2 . . . . Hover . | . . . . . Flight . | . . . . . Fastest Speed 50 | 50 160 160 160 160 Average Speed 158 | 124 160 160 160 160 Slowest Speed 160 | 160 160 160 160 160 Overloaded Moves . | . . . . . Propulsion Burnouts . | . . . . . Robots Hopped . | . . . . . Potential Cave-ins . | . . . . . Cave-ins Triggered . | . . . . . Exploration Rate (%) 41 | 6 27 97 68 11 Regions Visited 4 Branch Regions 3 Pre-discovered Areas 2 | . . 1 1 . Known Exits Taken . | . . . . . Unknown Exits Taken 4 | 1 1 1 1 . Scrap Searched 1 | . . 1 . . Spaces Dug . | . . . . . Terrain Destroyed . | . . . . . Melee . | . . . . . Projectile . | . . . . . AOE . | . . . . . Terrain Rammed . | . . . . . Walls Destroyed . | . . . . . Machines Disabled . | . . . . . Actions | -11 -10 -10 -10 -9 --------- Run | Yrd Mat Min Exi Min Total 1118 | 71 111 549 369 18 Wait 47 | . . 36 5 6 Move 1003 | 49 110 488 349 7 Hop . | . . . . . Pick Up 22 | 8 1 4 9 . Fast Attach 6 | 4 . 2 . . Attach 3 | 3 . . . . Detach . | . . . . . Swap 2 | 1 . . 1 . Drop 9 | . . 4 5 . Fire 26 | 6 . 15 . 5 Melee . | . . . . . Ram . | . . . . . Kick . | . . . . . Crush . | . . . . . Escape Stasis . | . . . . . Rewire . | . . . . . Trap . | . . . . . Miscellaneous . | . . . . . Route ------- -11/Scrapyard -10/Materials -10/Mines (discovered 3 exits: [*Mat x2] / *Exi) -10/Exiles -9/Mines History --------- Turn | Location | Event 30 | -11/Scrapyard | Discovered new exit (range 16) 96 | -11/Scrapyard | Entered Materials 246 | -10/Materials | Discovered new exit (range 16) 273 | -10/Materials | Entered Mines 306 | -10/Mines | Build established: Mutant 318 | -10/Mines | Received a Mining Laser from a helpful Derelict 326 | -10/Mines | Discovered new exit (range 5) 399 | -10/Mines | Found a Scrap Suit stashed away for nefarious purposes 406 | -10/Mines | Found Scrap Suit 530 | -10/Mines | Discovered new exit (range 10) 677 | -10/Mines | Deemed a non-threat by the Exiles lab entrance 717 | -10/Mines | A weapon hastily lodged in a ceiling crevice suddenly fell to the ground 816 | -10/Mines | Assisted by bots powering up and referring to "LRC-V3" 958 | -10/Mines | Learned location of Storage (-7) 1123 | -10/Mines | Discovered new exit (range 5) 1139 | -10/Mines | Entered Exiles 1139 | -10/Exiles | Accompanied by 3 allies 1179 | -10/Exiles | Met 8R-AWN 1205 | -10/Exiles | Met EX-HEX 1292 | -10/Exiles | Met EX-DEC 1320 | -10/Exiles | Learned location of Zion (-6) 1461 | -10/Exiles | Met EX-BIN 1484 | -10/Exiles | Aligned with FarCom system 1485 | -10/Exiles | Given EX-Vault access code 1522 | -10/Exiles | Opened EX-Vault 1534 | -10/Exiles | Found AWS/Autocannon 1558 | -10/Exiles | Found Potential Leg 1561 | -10/Exiles | Found Potential Leg 1564 | -10/Exiles | Found Skeleton Box 1597 | -10/Exiles | Warned to stay clear of 0b10 Research branches 1698 | -10/Exiles | Discovered new exit (range 10) 1715 | -10/Exiles | Stole three prototypes: Potential Leg, Skeleton Box, AWS/Autocannon 1715 | -10/Exiles | Entered Mines 1715 | -9/Mines | Accompanied by 3 allies 1716 | -9/Mines | Assembled infested the area 1743 | -9/Mines | Core integrity fell below 50% 1745 | -9/Mines | Core integrity fell below 20% 1746 | -9/Mines | Destroyed by as-41003 with Assembled Blade Last Messages --------------- 01715_ Receiving FarCom transmissions... 01716_ ALERT: Infestation in the mines, dispatching Demolisher response squad. 01717_ as-74945 destroyed. 01717_ Switching to secondary target: as-23798. 01717_ as-23798 suffers critical hit (Burn). 01717_ as-23798 destroyed. 01721_ Destroyed Asb. F-torch. 01722_ Mercenary 1a destroyed. 01725_ as-37643 suffers critical hit (Burn). 01727_ Trooper 1b destroyed. 01727_ as-90733 destroyed. 01730_ Trooper 1a destroyed. 01738_ Beamcaster destroyed. 01740_ Lgt. Treads destroyed. 01741_ Lgt. Assault Rifle destroyed. 01741_ Lgt. Treads destroyed. 01743_ as-47299 destroyed. 01744_ Ion Engine destroyed. 01745_ Seismic Detector destroyed. Map ----- +----------------------------------------------------+ | ??????????????????????????????????????? | | ??????????????????????????????????????? | | ??????????????????????????????????????? | | ??????????????????????????????????????? | | ??????????????????????????????????????? | | ??????????????????????????????????????? | | ??????????????????????????????????????? | | ??????????????????????????????????????? | | ??????????????????????????????????????? | | ??????????????????????????????????????? | | ?????????????????????????? ???????????? | | ?????????????????????????? ???????????? | | ?????????????????????????? ???????????? | | ???????????????????#?????? ???????????? | | ???????????????????# ????# ???????????? | | ???????????????????# #### ??????????? | | ???????????????????# ??? ???????? | | ???????????????????? ? ??????? | | ????????????????????? #??????? | | ????????????????????? #??????? | | ?????????????????????? """ ##?????? | | ??????????????????????# """ #?????? | | ?????????????????????## """ #?????? | | ?????????????????##### #??????? | | ????????????????## #???????? | | ????????????????# @a #????????? | | ????????????????# aaa ##????????? | | ?????????? a ##????????? | | ?????????? ## #????????? | | ??????????? #######??# aaaa #????????? | | ?????????????????????##a ##????????? | | ????????????????????## a ##????????? | | ????????????????????# %a% #????????? | | ????????????????????# =% #???????? | | ???????????????????# a %[ #??????? | | ????????????????? % % #??????? | | ?????????????? % * ### ##??????? | | ?????????????############???###???????? | | ??????????????????????????????????????? | | ??????????????????????????????????????? | | | | | | | | | | | | | | | | | | | | | +----------------------------------------------------+ Best States ------------- Heat Dissipation 25 Energy Generation 10 Energy Capacity 250 Matter Stores 300 Matter Capacity 300 Sight Range 16 Terrain Scan Density 10 Evasion (%) 40 Recoil Reduction 2 Item Schematics ----------------- None Robot Schematics ------------------ None Fabricated ------------ Nothing Repaired ---------- Nothing Alien Tech Used ----------------- None Achievements -------------- None Challenges ------------ None Game ------ Seed SpacefoldDisruptionShifter Manual? 0 Play Time 00:07:15 Cumulative 385.1 hours Start 2025.10.15 @ 13:27:36 End 2025.10.15 @ 13:34:13 Sessions 1 Manual Loads 0 Difficulty Rogue Special Mode None Game No. 507 Rogue 507 Adventurer 0 Explorer 0 Win Type - Total 11 Types 6/0/1/2/1/0/1/0/0/0 Lore% 88 Gallery% 83 Achievement% 70 Wizard Run 0 Options --------- Layout 0 ASCII 0 Keyboard 0 Movement Mouse Keybinds 0 Fullscreen 1 Font 24/Tamsyn Map View 76x50 Zoom Use 0% Tactical HUD 1 Map Filters NONE Filters NONE Steam 1 RUN: 73c542a4-b432-4358-831e-d204d94915dd